[Event "Titled Tuesday Blitz February 07 Late 2023"]
[White "Grot, Blazej"]
[Black "Halkias, Stelios"]
[WhiteFideId "21835845"]
[BlackFideId "4201809"]
[WhiteElo "1990"]
[BlackElo "2511"]
[Result "0-1"]
[Round "02"]
[TimeControl "180+2"]
[Date "2023.02.07"]
[WhiteClock "0:00:04"]
[BlackClock "0:00:37"]

1. e4 {[%clk 0:03:00]}  c5 {[%clk 0:02:57]} 2. Nc3 {[%clk 0:02:59]}  d6 {[%clk 0:02:55]} 3. d4 {[%clk 0:02:59]}  cxd4 {[%clk 0:02:55]} 4. Qxd4 {[%clk 0:03:00]}  Nc6 {[%clk 0:02:55]} 5. Qd2 {[%clk 0:02:59]}  Nf6 {[%clk 0:02:55]} 6. b3 {[%clk 0:02:59]}  e6 {[%clk 0:02:55]} 7. Bb2 {[%clk 0:02:59]}  d5 {[%clk 0:02:48]} 8. exd5 {[%clk 0:02:40]}  exd5 {[%clk 0:02:48]} 9. O-O-O {[%clk 0:02:35]}  Be6 {[%clk 0:02:47]} 10. Nf3 {[%clk 0:02:32]}  Be7 {[%clk 0:02:47]} 11. h3 {[%clk 0:02:25]}  O-O {[%clk 0:02:46]} 12. g4 {[%clk 0:02:25]}  Bb4 {[%clk 0:02:05]} 13. Qd3 {[%clk 0:01:41]}  Qa5 {[%clk 0:02:03]} 14. Kb1 {[%clk 0:01:33]}  Rfd8 {[%clk 0:01:56]} 15. g5 {[%clk 0:01:33]}  Ne4 {[%clk 0:01:53]} 16. Na4 {[%clk 0:00:02]}  Nxf2 {[%clk 0:01:34]} 17. Qe2 {[%clk 0:00:03]}  Nxh1 {[%clk 0:01:12]} 18. Ne5 {[%clk 0:00:03]}  Ng3 {[%clk 0:01:03]} 19. Nxc6 {[%clk 0:00:02]}  bxc6 {[%clk 0:01:03]} 20. Qe5 {[%clk 0:00:02]}  Nf5 {[%clk 0:01:03]} 21. Bd3 {[%clk 0:00:02]}  Bd6 {[%clk 0:01:03]} 22. Qe2 {[%clk 0:00:01]}  Bf8 {[%clk 0:00:55]} 23. Bc3 {[%clk 0:00:01]}  Qc7 {[%clk 0:00:53]} 24. Qg4 {[%clk 0:00:02]}  d4 {[%clk 0:00:45]} 25. Qh5 {[%clk 0:00:03]}  dxc3 {[%clk 0:00:44]} 26. Nxc3 {[%clk 0:00:02]}  Qe5 {[%clk 0:00:42]} 27. Ne4 {[%clk 0:00:02]}  c5 {[%clk 0:00:39]} 28. Nf6+ {[%clk 0:00:03]}  gxf6 {[%clk 0:00:39]} 29. gxf6 {[%clk 0:00:04]}  Qxf6 {[%clk 0:00:38]} 30. Rg1+ {[%clk 0:00:05]}  Bg7 {[%clk 0:00:38]} 31. Kc1 {[%clk 0:00:03]}  c4 {[%clk 0:00:38]} 32. Kd2 {[%clk 0:00:04]}  cxd3 {[%clk 0:00:37]} 0-1


[Site "https://www.chess.com"]

[Event "Titled Tuesday Blitz February 07 Late 2023"]
[White "Fernandez Guillen, Ernesto J."]
[Black "Rengifo Blancas, Renzo Jhonathan"]
[WhiteFideId "3512428"]
[BlackFideId "3807185"]
[WhiteElo "2477"]
[BlackElo "2131"]
[Result "1-0"]
[Round "02"]
[TimeControl "180+2"]
[Date "2023.02.07"]
[WhiteClock "0:00:11"]
[BlackClock "0:00:07"]

1. e4 {[%clk 0:02:52]}  e5 {[%clk 0:02:59]} 2. Nf3 {[%clk 0:02:51]}  Nc6 {[%clk 0:03:00]} 3. d4 {[%clk 0:02:51]}  exd4 {[%clk 0:03:00]} 4. Bc4 {[%clk 0:02:52]}  Bc5 {[%clk 0:03:00]} 5. O-O {[%clk 0:02:52]}  Nf6 {[%clk 0:03:00]} 6. e5 {[%clk 0:02:53]}  d5 {[%clk 0:02:58]} 7. exf6 {[%clk 0:02:54]}  dxc4 {[%clk 0:02:58]} 8. fxg7 {[%clk 0:02:55]}  Rg8 {[%clk 0:02:58]} 9. Bg5 {[%clk 0:02:55]}  Qd5 {[%clk 0:02:46]} 10. Nc3 {[%clk 0:02:54]}  Qf5 {[%clk 0:02:45]} 11. Ne4 {[%clk 0:02:52]}  Be7 {[%clk 0:02:39]} 12. Bxe7 {[%clk 0:02:50]}  Kxe7 {[%clk 0:02:24]} 13. Nxd4 {[%clk 0:02:47]}  Nxd4 {[%clk 0:02:24]} 14. Qxd4 {[%clk 0:02:48]}  Be6 {[%clk 0:02:25]} 15. Rfe1 {[%clk 0:02:46]}  Rad8 {[%clk 0:02:19]} 16. Qxa7 {[%clk 0:02:45]}  Rxg7 {[%clk 0:02:19]} 17. Qa3+ {[%clk 0:02:34]}  Ke8 {[%clk 0:02:12]} 18. g3 {[%clk 0:02:08]}  Rg4 {[%clk 0:02:02]} 19. Nc5 {[%clk 0:01:31]}  Rd2 {[%clk 0:01:11]} 20. Qe3 {[%clk 0:01:24]}  Rxc2 {[%clk 0:01:10]} 21. Rad1 {[%clk 0:01:21]}  Rg6 {[%clk 0:01:06]} 22. Qd4 {[%clk 0:01:19]}  Kf8 {[%clk 0:00:55]} 23. Nxe6+ {[%clk 0:01:03]}  fxe6 {[%clk 0:00:55]} 24. Qd8+ {[%clk 0:00:57]}  Kg7 {[%clk 0:00:54]} 25. Rd7+ {[%clk 0:00:57]}  Kh6 {[%clk 0:00:53]} 26. Qh4+ {[%clk 0:00:58]}  Qh5 {[%clk 0:00:53]} 27. Qf4+ {[%clk 0:00:26]}  Qg5 {[%clk 0:00:53]} 28. Qf8+ {[%clk 0:00:25]}  Kh5 {[%clk 0:00:32]} 29. Rxh7+ {[%clk 0:00:24]}  Rh6 {[%clk 0:00:28]} 30. Qf7+ {[%clk 0:00:19]}  Kg4 {[%clk 0:00:09]} 31. Rg7 {[%clk 0:00:13]}  Rh5 {[%clk 0:00:09]} 32. Rxg5+ {[%clk 0:00:12]}  Rxg5 {[%clk 0:00:09]} 33. Qxe6+ {[%clk 0:00:11]}  Kh5 {[%clk 0:00:09]} 34. Qf7+ {[%clk 0:00:12]}  Kg4 {[%clk 0:00:08]} 35. f3+ {[%clk 0:00:10]}  Kh3 {[%clk 0:00:07]} 36. Qh7+ {[%clk 0:00:11]} 1-0


[Site "https://www.chess.com"]

[Event "Titled Tuesday Blitz February 07 Late 2023"]
[White "Figorito, Nick"]
[Black "Goltsev, Dmitry"]
[WhiteFideId "30923689"]
[BlackFideId "24176710"]
[WhiteElo "2036"]
[BlackElo "2269"]
[Result "0-1"]
[Round "02"]
[TimeControl "180+2"]
[Date "2023.02.07"]
[WhiteClock "0:01:20"]
[BlackClock "0:02:26"]

1. Nf3 {[%clk 0:03:00]}  d5 {[%clk 0:02:56]} 2. g3 {[%clk 0:03:01]}  c6 {[%clk 0:02:56]} 3. Bg2 {[%clk 0:03:01]}  Nf6 {[%clk 0:02:57]} 4. O-O {[%clk 0:03:02]}  g6 {[%clk 0:02:58]} 5. d4 {[%clk 0:03:02]}  Bg7 {[%clk 0:02:58]} 6. c4 {[%clk 0:03:02]}  O-O {[%clk 0:02:58]} 7. cxd5 {[%clk 0:03:02]}  cxd5 {[%clk 0:02:58]} 8. Ne5 {[%clk 0:03:03]}  Nc6 {[%clk 0:02:56]} 9. Nxc6 {[%clk 0:03:03]}  bxc6 {[%clk 0:02:54]} 10. Nc3 {[%clk 0:03:04]}  a5 {[%clk 0:02:54]} 11. Bf4 {[%clk 0:03:03]}  Ba6 {[%clk 0:02:54]} 12. Be5 {[%clk 0:03:03]}  Nd7 {[%clk 0:02:54]} 13. Bxg7 {[%clk 0:03:03]}  Kxg7 {[%clk 0:02:54]} 14. Rc1 {[%clk 0:03:03]}  e6 {[%clk 0:02:51]} 15. Re1 {[%clk 0:03:03]}  c5 {[%clk 0:02:51]} 16. e4 {[%clk 0:02:58]}  Qf6 {[%clk 0:02:43]} 17. dxc5 {[%clk 0:02:40]}  Nxc5 {[%clk 0:02:44]} 18. exd5 {[%clk 0:02:37]}  Nd3 {[%clk 0:02:44]} 19. Qd2 {[%clk 0:02:16]}  Nxe1 {[%clk 0:02:40]} 20. Rxe1 {[%clk 0:02:14]}  Rfd8 {[%clk 0:02:39]} 21. Qe3 {[%clk 0:01:53]}  Rab8 {[%clk 0:02:37]} 22. dxe6 {[%clk 0:01:49]}  Qxe6 {[%clk 0:02:31]} 23. Qc1 {[%clk 0:01:34]}  Qb6 {[%clk 0:02:28]} 24. b3 {[%clk 0:01:26]}  Rbc8 {[%clk 0:02:28]} 25. Qb2 {[%clk 0:01:26]}  Qd4 {[%clk 0:02:26]} 26. Rc1 {[%clk 0:01:20]}  Rc5 {[%clk 0:02:26]} 0-1


[Site "https://www.chess.com"]

[Event "Titled Tuesday Blitz February 07 Late 2023"]
[White "Goncalves, Davi Sulzbacher"]
[Black "Alex_Sahakyan2006"]
[WhiteFideId "2154510"]
[WhiteElo "2282"]
[BlackElo "2733"]
[Result "0-1"]
[Round "02"]
[TimeControl "180+2"]
[Date "2023.02.07"]
[WhiteClock "0:00:01"]
[BlackClock "0:01:10"]

1. Nf3 {[%clk 0:03:00]}  d5 {[%clk 0:02:57]} 2. d4 {[%clk 0:03:00]}  Nf6 {[%clk 0:02:56]} 3. c4 {[%clk 0:03:01]}  e6 {[%clk 0:02:56]} 4. Nc3 {[%clk 0:03:00]}  h6 {[%clk 0:02:55]} 5. g3 {[%clk 0:02:58]}  Nc6 {[%clk 0:02:49]} 6. Bg2 {[%clk 0:02:57]}  Bd6 {[%clk 0:02:47]} 7. O-O {[%clk 0:02:55]}  O-O {[%clk 0:02:46]} 8. c5 {[%clk 0:02:48]}  Be7 {[%clk 0:02:45]} 9. Bf4 {[%clk 0:02:47]}  b6 {[%clk 0:02:38]} 10. cxb6 {[%clk 0:01:56]}  axb6 {[%clk 0:02:36]} 11. Rc1 {[%clk 0:01:56]}  Ba6 {[%clk 0:02:34]} 12. a3 {[%clk 0:01:51]}  Na5 {[%clk 0:02:32]} 13. Bxc7 {[%clk 0:01:35]}  Qxc7 {[%clk 0:02:28]} 14. Nxd5 {[%clk 0:01:35]}  Qd8 {[%clk 0:02:26]} 15. Nc7 {[%clk 0:01:25]}  Ra7 {[%clk 0:02:21]} 16. Nxa6 {[%clk 0:01:22]}  Rxa6 {[%clk 0:02:22]} 17. Ne5 {[%clk 0:01:16]}  Nd5 {[%clk 0:02:10]} 18. e4 {[%clk 0:01:05]}  Nf6 {[%clk 0:02:00]} 19. b4 {[%clk 0:00:48]}  Nb7 {[%clk 0:01:59]} 20. Nc6 {[%clk 0:00:47]}  Qd7 {[%clk 0:01:58]} 21. e5 {[%clk 0:00:44]}  Nd5 {[%clk 0:01:57]} 22. Qd3 {[%clk 0:00:32]}  Rfa8 {[%clk 0:01:55]} 23. Nb8 {[%clk 0:00:29]}  Rxb8 {[%clk 0:01:37]} 24. Qxa6 {[%clk 0:00:28]}  Nd8 {[%clk 0:01:32]} 25. Rc2 {[%clk 0:00:25]}  Nc6 {[%clk 0:01:29]} 26. Qb5 {[%clk 0:00:22]}  Nxe5 {[%clk 0:01:27]} 27. Qxd7 {[%clk 0:00:18]}  Nxd7 {[%clk 0:01:28]} 28. Bxd5 {[%clk 0:00:18]}  exd5 {[%clk 0:01:29]} 29. Rc7 {[%clk 0:00:18]}  Rd8 {[%clk 0:01:30]} 30. Rfc1 {[%clk 0:00:14]}  Bf6 {[%clk 0:01:29]} 31. Rc8 {[%clk 0:00:12]}  Rxc8 {[%clk 0:01:29]} 32. Rxc8+ {[%clk 0:00:12]}  Nf8 {[%clk 0:01:29]} 33. Kf1 {[%clk 0:00:09]}  Bxd4 {[%clk 0:01:27]} 34. Rd8 {[%clk 0:00:10]}  Bb2 {[%clk 0:01:26]} 35. a4 {[%clk 0:00:07]}  Bc3 {[%clk 0:01:26]} 36. b5 {[%clk 0:00:04]}  d4 {[%clk 0:01:25]} 37. Rd6 {[%clk 0:00:04]}  Ba5 {[%clk 0:01:22]} 38. Rxd4 {[%clk 0:00:04]}  Ne6 {[%clk 0:01:22]} 39. Rd6 {[%clk 0:00:03]}  Nc5 {[%clk 0:01:22]} 40. Rd8+ {[%clk 0:00:02]}  Kh7 {[%clk 0:01:22]} 41. f4 {[%clk 0:00:01]}  Nxa4 {[%clk 0:01:20]} 42. Kf2 {[%clk 0:00:02]}  Nc3 {[%clk 0:01:20]} 43. Rd7 {[%clk 0:00:02]}  Kg6 {[%clk 0:01:19]} 44. Kf3 {[%clk 0:00:03]}  Nxb5 {[%clk 0:01:19]} 45. g4 {[%clk 0:00:03]}  Nc3 {[%clk 0:01:16]} 46. h4 {[%clk 0:00:02]}  Bb4 {[%clk 0:01:12]} 47. Rc7 {[%clk 0:00:01]}  Bc5 {[%clk 0:01:10]} 0-1


[Site "https://www.chess.com"]

[Event "Titled Tuesday Blitz February 07 Late 2023"]
[White "Sarkar, Justin"]
[Black "Adewumi, Tanitoluwa"]
[WhiteFideId "2010011"]
[BlackFideId "30966396"]
[WhiteElo "2309"]
[BlackElo "2283"]
[Result "1-0"]
[Round "02"]
[TimeControl "180+2"]
[Date "2023.02.07"]
[WhiteClock "0:00:10"]
[BlackClock "0:00:03"]

1. e4 {[%clk 0:02:55]}  c6 {[%clk 0:02:56]} 2. Nf3 {[%clk 0:02:42]}  d5 {[%clk 0:02:55]} 3. Nc3 {[%clk 0:02:42]}  dxe4 {[%clk 0:02:42]} 4. Nxe4 {[%clk 0:02:41]}  Nf6 {[%clk 0:02:43]} 5. Ng3 {[%clk 0:02:41]}  Bg4 {[%clk 0:02:39]} 6. h3 {[%clk 0:02:38]}  Bxf3 {[%clk 0:02:38]} 7. Qxf3 {[%clk 0:02:38]}  e6 {[%clk 0:02:38]} 8. c3 {[%clk 0:02:35]}  Nbd7 {[%clk 0:02:26]} 9. d4 {[%clk 0:02:33]}  Bd6 {[%clk 0:02:26]} 10. Bd3 {[%clk 0:02:27]}  O-O {[%clk 0:02:21]} 11. O-O {[%clk 0:02:25]}  Qc7 {[%clk 0:02:16]} 12. a4 {[%clk 0:02:21]}  Rae8 {[%clk 0:02:14]} 13. Re1 {[%clk 0:02:09]}  Bxg3 {[%clk 0:02:07]} 14. fxg3 {[%clk 0:02:08]}  e5 {[%clk 0:02:04]} 15. Qf2 {[%clk 0:01:40]}  exd4 {[%clk 0:01:58]} 16. Bf4 {[%clk 0:01:38]}  Qb6 {[%clk 0:01:41]} 17. cxd4 {[%clk 0:01:29]}  Qb4 {[%clk 0:01:24]} 18. Be5 {[%clk 0:00:48]}  Nxe5 {[%clk 0:00:51]} 19. dxe5 {[%clk 0:00:47]}  Nd5 {[%clk 0:00:51]} 20. Re4 {[%clk 0:00:41]}  Qb6 {[%clk 0:00:43]} 21. a5 {[%clk 0:00:40]}  Qxf2+ {[%clk 0:00:41]} 22. Kxf2 {[%clk 0:00:40]}  f5 {[%clk 0:00:38]} 23. Re2 {[%clk 0:00:29]}  Kh8 {[%clk 0:00:34]} 24. Bc4 {[%clk 0:00:27]}  Nc7 {[%clk 0:00:28]} 25. e6 {[%clk 0:00:22]}  Rf6 {[%clk 0:00:27]} 26. Rd1 {[%clk 0:00:18]}  h6 {[%clk 0:00:05]} 27. e7 {[%clk 0:00:18]}  b5 {[%clk 0:00:02]} 28. Ba2 {[%clk 0:00:15]}  b4 {[%clk 0:00:02]} 29. Rd7 {[%clk 0:00:15]}  Na6 {[%clk 0:00:01]} 30. Rd8 {[%clk 0:00:14]}  Nc7 {[%clk 0:00:02]} 31. Red2 {[%clk 0:00:11]}  g6 {[%clk 0:00:02]} 32. Rxe8+ {[%clk 0:00:10]}  Nxe8 {[%clk 0:00:02]} 33. Rd8 {[%clk 0:00:10]}  Kg7 {[%clk 0:00:03]} 34. Rxe8 {[%clk 0:00:10]}  Rd6 {[%clk 0:00:02]} 35. Rg8+ {[%clk 0:00:10]}  Kf6 {[%clk 0:00:02]} 36. e8=N+ {[%clk 0:00:10]}  Ke7 {[%clk 0:00:02]} 37. Nxd6 {[%clk 0:00:10]}  Kxd6 {[%clk 0:00:03]} 38. Rxg6+ {[%clk 0:00:10]} 1-0


[Site "https://www.chess.com"]

[Event "Titled Tuesday Blitz February 07 Late 2023"]
[White "Cuenca Jimenez, Jose Fernando"]
[Black "Battlecruiser_Operational"]
[WhiteFideId "2255570"]
[WhiteElo "2535"]
[BlackElo "2371"]
[Result "1-0"]
[Round "02"]
[TimeControl "180+2"]
[Date "2023.02.07"]
[WhiteClock "0:00:12"]
[BlackClock "0:00:01"]

1. d4 {[%clk 0:02:46]}  d5 {[%clk 0:02:55]} 2. Nf3 {[%clk 0:02:46]}  Nf6 {[%clk 0:02:54]} 3. e3 {[%clk 0:02:45]}  g6 {[%clk 0:02:51]} 4. c4 {[%clk 0:02:41]}  Bg7 {[%clk 0:02:51]} 5. Nc3 {[%clk 0:02:40]}  O-O {[%clk 0:02:47]} 6. Be2 {[%clk 0:02:38]}  c5 {[%clk 0:02:39]} 7. dxc5 {[%clk 0:02:36]}  Qa5 {[%clk 0:02:38]} 8. cxd5 {[%clk 0:02:11]}  Na6 {[%clk 0:02:12]} 9. O-O {[%clk 0:02:03]}  Nxc5 {[%clk 0:02:11]} 10. Bd2 {[%clk 0:01:52]}  Rd8 {[%clk 0:01:54]} 11. e4 {[%clk 0:01:39]}  e6 {[%clk 0:01:40]} 12. Qc2 {[%clk 0:01:20]}  Qb6 {[%clk 0:00:59]} 13. b4 {[%clk 0:01:11]}  Na6 {[%clk 0:00:55]} 14. b5 {[%clk 0:01:08]}  Nc5 {[%clk 0:00:21]} 15. Bg5 {[%clk 0:01:04]}  h6 {[%clk 0:00:18]} 16. Bxf6 {[%clk 0:01:03]}  Bxf6 {[%clk 0:00:19]} 17. e5 {[%clk 0:01:03]}  Bg7 {[%clk 0:00:19]} 18. d6 {[%clk 0:01:03]}  Bd7 {[%clk 0:00:19]} 19. a4 {[%clk 0:01:03]}  a5 {[%clk 0:00:19]} 20. Rab1 {[%clk 0:00:53]}  Rac8 {[%clk 0:00:19]} 21. Qd2 {[%clk 0:00:52]}  f6 {[%clk 0:00:18]} 22. exf6 {[%clk 0:00:51]}  Bxf6 {[%clk 0:00:18]} 23. Qxh6 {[%clk 0:00:51]}  Be8 {[%clk 0:00:18]} 24. Qe3 {[%clk 0:00:45]}  Qxd6 {[%clk 0:00:17]} 25. Ne4 {[%clk 0:00:44]}  Nxe4 {[%clk 0:00:17]} 26. Qxe4 {[%clk 0:00:45]}  b6 {[%clk 0:00:17]} 27. Rfe1 {[%clk 0:00:43]}  Bf7 {[%clk 0:00:16]} 28. g3 {[%clk 0:00:41]}  Qa3 {[%clk 0:00:16]} 29. Rbd1 {[%clk 0:00:32]}  Kg7 {[%clk 0:00:16]} 30. h4 {[%clk 0:00:32]}  Rxd1 {[%clk 0:00:13]} 31. Rxd1 {[%clk 0:00:31]}  Qa2 {[%clk 0:00:10]} 32. Rd7 {[%clk 0:00:26]}  Rc2 {[%clk 0:00:10]} 33. Bd3 {[%clk 0:00:20]}  Rc1+ {[%clk 0:00:10]} 34. Kg2 {[%clk 0:00:19]}  Kf8 {[%clk 0:00:07]} 35. Ng5 {[%clk 0:00:15]}  Bxg5 {[%clk 0:00:07]} 36. hxg5 {[%clk 0:00:16]}  Qb2 {[%clk 0:00:07]} 37. Qf4 {[%clk 0:00:15]}  Qg7 {[%clk 0:00:06]} 38. Qd6+ {[%clk 0:00:12]}  Kg8 {[%clk 0:00:06]} 39. Rd8+ {[%clk 0:00:12]}  Kh7 {[%clk 0:00:07]} 40. Qf4 {[%clk 0:00:12]}  Bg8 {[%clk 0:00:01]} 41. Qh4+ {[%clk 0:00:12]}  Qh6 {[%clk 0:00:01]} 42. Qxh6# {[%clk 0:00:12]} 1-0


[Site "https://www.chess.com"]

[Event "Titled Tuesday Blitz February 07 Late 2023"]
[White "Javakhadze, Zurab"]
[Black "Remolar Gallen, Jose"]
[WhiteFideId "13603647"]
[BlackFideId "2215187"]
[WhiteElo "2459"]
[BlackElo "2285"]
[Result "0-1"]
[Round "02"]
[TimeControl "180+2"]
[Date "2023.02.07"]
[WhiteClock "0:00:04"]
[BlackClock "0:00:03"]

1. Nf3 {[%clk 0:03:00]}  Nf6 {[%clk 0:02:59]} 2. g3 {[%clk 0:02:56]}  g6 {[%clk 0:03:00]} 3. Bg2 {[%clk 0:02:57]}  Bg7 {[%clk 0:03:00]} 4. O-O {[%clk 0:02:58]}  O-O {[%clk 0:03:01]} 5. c4 {[%clk 0:02:58]}  d6 {[%clk 0:03:00]} 6. Nc3 {[%clk 0:02:58]}  Nc6 {[%clk 0:03:00]} 7. d3 {[%clk 0:02:59]}  e5 {[%clk 0:02:59]} 8. Rb1 {[%clk 0:03:00]}  h6 {[%clk 0:02:59]} 9. b4 {[%clk 0:03:00]}  Be6 {[%clk 0:02:59]} 10. b5 {[%clk 0:03:00]}  Ne7 {[%clk 0:02:59]} 11. Nd2 {[%clk 0:02:59]}  Rb8 {[%clk 0:02:56]} 12. a4 {[%clk 0:02:56]}  Nd7 {[%clk 0:02:55]} 13. Bb2 {[%clk 0:02:56]}  f5 {[%clk 0:02:53]} 14. Nd5 {[%clk 0:02:52]}  Nf6 {[%clk 0:02:44]} 15. Nxf6+ {[%clk 0:02:36]}  Rxf6 {[%clk 0:02:40]} 16. f4 {[%clk 0:02:35]}  Rf7 {[%clk 0:02:34]} 17. Qc2 {[%clk 0:02:30]}  g5 {[%clk 0:02:26]} 18. e3 {[%clk 0:02:21]}  Ng6 {[%clk 0:02:13]} 19. Nf3 {[%clk 0:02:08]}  g4 {[%clk 0:02:08]} 20. Nd2 {[%clk 0:02:02]}  h5 {[%clk 0:02:08]} 21. d4 {[%clk 0:01:39]}  exf4 {[%clk 0:00:57]} 22. exf4 {[%clk 0:01:37]}  Re7 {[%clk 0:00:49]} 23. d5 {[%clk 0:01:34]}  Bd7 {[%clk 0:00:48]} 24. Bxg7 {[%clk 0:01:31]}  Rxg7 {[%clk 0:00:46]} 25. Nb3 {[%clk 0:01:31]}  Qf6 {[%clk 0:00:44]} 26. c5 {[%clk 0:01:17]}  Re8 {[%clk 0:00:40]} 27. Rfe1 {[%clk 0:01:09]}  Rge7 {[%clk 0:00:39]} 28. Kf2 {[%clk 0:01:06]}  h4 {[%clk 0:00:34]} 29. cxd6 {[%clk 0:00:54]}  cxd6 {[%clk 0:00:31]} 30. Rxe7 {[%clk 0:00:54]}  Qxe7 {[%clk 0:00:30]} 31. Qd2 {[%clk 0:00:51]}  a6 {[%clk 0:00:24]} 32. Nd4 {[%clk 0:00:45]}  axb5 {[%clk 0:00:21]} 33. axb5 {[%clk 0:00:46]}  Qd8 {[%clk 0:00:17]} 34. b6 {[%clk 0:00:45]}  Qe7 {[%clk 0:00:16]} 35. Bf1 {[%clk 0:00:26]}  Qf6 {[%clk 0:00:13]} 36. Re1 {[%clk 0:00:17]}  Rxe1 {[%clk 0:00:13]} 37. Kxe1 {[%clk 0:00:18]}  Ne7 {[%clk 0:00:13]} 38. Bb5 {[%clk 0:00:13]}  Bc8 {[%clk 0:00:11]} 39. Bc4 {[%clk 0:00:11]}  hxg3 {[%clk 0:00:11]} 40. hxg3 {[%clk 0:00:11]}  Qh8 {[%clk 0:00:11]} 41. Qe3 {[%clk 0:00:10]}  Qh1+ {[%clk 0:00:11]} 42. Kd2 {[%clk 0:00:10]}  Qg2+ {[%clk 0:00:11]} 43. Kc3 {[%clk 0:00:11]}  Kf8 {[%clk 0:00:08]} 44. Bb3 {[%clk 0:00:09]}  Nxd5+ {[%clk 0:00:05]} 45. Bxd5 {[%clk 0:00:09]}  Qxd5 {[%clk 0:00:06]} 46. Nb3 {[%clk 0:00:04]}  Be6 {[%clk 0:00:06]} 47. Nd2 {[%clk 0:00:04]}  Qc6+ {[%clk 0:00:05]} 48. Kd3 {[%clk 0:00:04]}  Kf7 {[%clk 0:00:05]} 49. Qd4 {[%clk 0:00:04]}  Qb5+ {[%clk 0:00:04]} 50. Ke3 {[%clk 0:00:05]}  Qc6 {[%clk 0:00:03]} 51. Qh8 {[%clk 0:00:04]}  Qxb6+ {[%clk 0:00:02]} 52. Ke2 {[%clk 0:00:04]}  Qb5+ {[%clk 0:00:02]} 53. Kf2 {[%clk 0:00:05]}  Qc5+ {[%clk 0:00:02]} 54. Ke2 {[%clk 0:00:05]}  Qb5+ {[%clk 0:00:02]} 55. Kf2 {[%clk 0:00:05]}  Qb6+ {[%clk 0:00:02]} 56. Ke2 {[%clk 0:00:05]}  Qa6+ {[%clk 0:00:02]} 57. Ke1 {[%clk 0:00:05]}  Qc6 {[%clk 0:00:01]} 58. Qh7+ {[%clk 0:00:05]}  Ke8 {[%clk 0:00:01]} 59. Qg6+ {[%clk 0:00:05]}  Kd7 {[%clk 0:00:01]} 60. Qg7+ {[%clk 0:00:05]}  Ke8 {[%clk 0:00:02]} 61. Qf6 {[%clk 0:00:05]}  Qd5 {[%clk 0:00:01]} 62. Qh8+ {[%clk 0:00:04]}  Kd7 {[%clk 0:00:01]} 63. Qg7+ {[%clk 0:00:05]}  Kc6 {[%clk 0:00:02]} 64. Nf1 {[%clk 0:00:05]}  b5 {[%clk 0:00:02]} 65. Kf2 {[%clk 0:00:05]}  Qe4 {[%clk 0:00:03]} 66. Ne3 {[%clk 0:00:06]}  b4 {[%clk 0:00:03]} 67. Qa7 {[%clk 0:00:06]}  Qd3 {[%clk 0:00:03]} 68. Qa8+ {[%clk 0:00:06]}  Kc5 {[%clk 0:00:02]} 69. Qa5+ {[%clk 0:00:06]}  Kd4 {[%clk 0:00:02]} 70. Qb6+ {[%clk 0:00:06]}  Kc3 {[%clk 0:00:02]} 71. Qc6+ {[%clk 0:00:06]}  Kd2 {[%clk 0:00:02]} 72. Nf1+ {[%clk 0:00:05]}  Kd1 {[%clk 0:00:02]} 73. Ne3+ {[%clk 0:00:05]}  Kd2 {[%clk 0:00:03]} 74. Nf1+ {[%clk 0:00:04]}  Kd1 {[%clk 0:00:03]} 75. Qa4+ {[%clk 0:00:04]}  Qc2+ {[%clk 0:00:03]} 0-1


[Site "https://www.chess.com"]

[Event "Titled Tuesday Blitz February 07 Late 2023"]
[White "Rego, Pedro Filipe"]
[Black "Wieczorek, Oskar"]
[WhiteFideId "1904310"]
[BlackFideId "1133950"]
[WhiteElo "2312"]
[BlackElo "2512"]
[Result "0-1"]
[Round "02"]
[TimeControl "180+2"]
[Date "2023.02.07"]
[WhiteClock "0:00:01"]
[BlackClock "0:00:04"]

1. c4 {[%clk 0:02:49]}  Nf6 {[%clk 0:03:00]} 2. Nc3 {[%clk 0:02:49]}  g6 {[%clk 0:03:00]} 3. g3 {[%clk 0:02:48]}  Bg7 {[%clk 0:02:59]} 4. Bg2 {[%clk 0:02:49]}  O-O {[%clk 0:03:00]} 5. Nf3 {[%clk 0:02:48]}  d6 {[%clk 0:02:58]} 6. O-O {[%clk 0:02:49]}  Nc6 {[%clk 0:02:58]} 7. Rb1 {[%clk 0:02:48]}  e5 {[%clk 0:02:54]} 8. d3 {[%clk 0:02:48]}  a5 {[%clk 0:02:53]} 9. a3 {[%clk 0:02:48]}  Nd4 {[%clk 0:02:52]} 10. e3 {[%clk 0:02:34]}  Nxf3+ {[%clk 0:02:51]} 11. Bxf3 {[%clk 0:02:33]}  c6 {[%clk 0:02:52]} 12. b4 {[%clk 0:02:31]}  axb4 {[%clk 0:02:53]} 13. axb4 {[%clk 0:02:31]}  d5 {[%clk 0:02:51]} 14. Qb3 {[%clk 0:02:28]}  Be6 {[%clk 0:02:49]} 15. cxd5 {[%clk 0:02:22]}  cxd5 {[%clk 0:02:48]} 16. d4 {[%clk 0:02:20]}  e4 {[%clk 0:02:46]} 17. Bg2 {[%clk 0:02:18]}  Ne8 {[%clk 0:02:39]} 18. Ba3 {[%clk 0:02:14]}  Nd6 {[%clk 0:01:59]} 19. b5 {[%clk 0:02:08]}  Re8 {[%clk 0:01:59]} 20. Bxd6 {[%clk 0:01:57]}  Qxd6 {[%clk 0:02:00]} 21. Ra1 {[%clk 0:01:56]}  Bf8 {[%clk 0:01:47]} 22. Na4 {[%clk 0:01:52]}  b6 {[%clk 0:01:47]} 23. Rfc1 {[%clk 0:01:49]}  Bd7 {[%clk 0:01:45]} 24. Bf1 {[%clk 0:01:48]}  Ra5 {[%clk 0:01:39]} 25. Nc3 {[%clk 0:01:44]}  Rxa1 {[%clk 0:01:30]} 26. Rxa1 {[%clk 0:01:45]}  Be6 {[%clk 0:01:31]} 27. Ra6 {[%clk 0:01:41]}  Rb8 {[%clk 0:01:27]} 28. Na4 {[%clk 0:01:35]}  Qd8 {[%clk 0:01:24]} 29. Qc3 {[%clk 0:01:30]}  h5 {[%clk 0:01:16]} 30. h4 {[%clk 0:01:19]}  Rc8 {[%clk 0:00:46]} 31. Qb2 {[%clk 0:01:13]}  g5 {[%clk 0:00:42]} 32. Nxb6 {[%clk 0:01:07]}  Rb8 {[%clk 0:00:41]} 33. Na4 {[%clk 0:00:59]}  gxh4 {[%clk 0:00:42]} 34. Nc5 {[%clk 0:00:55]}  Bf5 {[%clk 0:00:23]} 35. Be2 {[%clk 0:00:45]}  hxg3 {[%clk 0:00:19]} 36. fxg3 {[%clk 0:00:36]}  Qg5 {[%clk 0:00:18]} 37. Kh2 {[%clk 0:00:23]}  h4 {[%clk 0:00:13]} 38. g4 {[%clk 0:00:24]}  Qxe3 {[%clk 0:00:08]} 39. gxf5 {[%clk 0:00:19]}  Qf2+ {[%clk 0:00:08]} 40. Kh1 {[%clk 0:00:18]}  h3 {[%clk 0:00:09]} 41. Bf1 {[%clk 0:00:02]}  Qxb2 {[%clk 0:00:08]} 42. Bxh3 {[%clk 0:00:03]}  Qxd4 {[%clk 0:00:06]} 43. Nd7 {[%clk 0:00:03]}  Qd1+ {[%clk 0:00:05]} 44. Kh2 {[%clk 0:00:02]}  Qd2+ {[%clk 0:00:04]} 45. Bg2 {[%clk 0:00:03]}  Qf4+ {[%clk 0:00:05]} 46. Kg1 {[%clk 0:00:02]}  Rxb5 {[%clk 0:00:03]} 47. Nf6+ {[%clk 0:00:01]}  Kh8 {[%clk 0:00:04]} 0-1


[Site "https://www.chess.com"]